bitfinex/quotes_BTCUSD_20241222
["timestamp","ask_amount","ask_price","bid_price","bid_amount"]
[1734886354081,0.01173,95754.0,95735.0,0.74053554]
[1734886354693,1.313e-05,95736.0,95735.0,0.74053554]
[1734886355479,1.313e-05,95736.0,95735.0,0.99053554]
[1734886356055,1.313e-05,95736.0,95735.0,1.00119342]
[1734886356476,1.313e-05,95736.0,95735.0,1.09427213]
[1734886357238,0.00201313,95736.0,95735.0,1.09527213]
[1734886357847,0.00201313,95736.0,95735.0,1.00219342]
[1734886358043,0.00201313,95736.0,95735.0,1.02282745]
[1734886358661,0.015,95776.0,95738.0,0.58811401]
[1734886358858,0.00032972,95764.0,95763.0,0.231848]
[1734886360078,0.00032972,95764.0,95763.0,0.73342641]
[1734886361864,0.00032972,95764.0,95763.0,0.83473481]
[1734886362355,0.00032972,95764.0,95763.0,0.82873481]
[1734886367305,0.00032972,95764.0,95763.0,0.82273481]
[1734886370063,0.00032972,95764.0,95763.0,0.81973481]
[1734886370231,0.00032972,95764.0,95763.0,0.82873481]
[1734886372227,0.00032972,95764.0,95763.0,0.90593481]
[1734886373200,0.015,95776.0,95775.0,0.208822]
[1734886373433,0.015,95776.0,95775.0,0.3331304]
[1734886374413,0.015,95776.0,95775.0,0.82824441]
[1734886377290,0.015,95776.0,95775.0,0.82224441]
[1734886377527,0.015,95776.0,95775.0,0.83268281]
[1734886378055,0.015,95776.0,95775.0,0.73137441]
[1734886379088,0.02667755,95776.0,95775.0,0.73137441]
[1734886379865,0.02667755,95776.0,95775.0,0.49511401]
[1734886380365,0.02667755,95776.0,95775.0,0.007]
[1734886380766,0.02667755,95776.0,95765.0,0.208843]
[1734886380966,0.02667755,95776.0,95775.0,0.005]
[1734886381435,0.02667755,95776.0,95765.0,0.208843]
[1734886381615,0.02667755,95776.0,95765.0,0.417687]
[1734886381818,0.02667755,95776.0,95775.0,0.001]
[1734886383217,0.02667755,95776.0,95775.0,0.208822]
[1734886383637,0.02667755,95776.0,95775.0,0.210822]
[1734886383874,0.02667755,95776.0,95775.0,0.208822]
[1734886384277,0.02667755,95776.0,95775.0,0.211822]
[1734886385269,0.02667755,95776.0,95775.0,0.234822]
[1734886385270,0.02684855,95776.0,95775.0,0.234822]
[1734886386562,0.02684855,95776.0,95775.0,0.72293601]
[1734886387176,0.02684855,95776.0,95775.0,0.71693601]
[1734886387985,0.02684855,95776.0,95775.0,0.71393601]
[1734886388178,0.02684855,95776.0,95775.0,0.71793601]
[1734886392340,0.02684855,95776.0,95775.0,0.81324441]
[1734886392512,0.015,95780.0,95775.0,0.89374441]
[1734886392754,0.015,95780.0,95779.0,0.208814]
[1734886392922,0.015,95780.0,95779.0,0.3331224]
[1734886394120,0.015,95780.0,95779.0,0.3371224]
[1734886394389,0.015,95780.0,95779.0,0.3331224]
[1734886394789,0.1,95820.0,95780.0,0.48811401]
[1734886394958,0.208779,95795.0,95783.0,0.208805]
[1734886396367,0.417544,95799.0,95787.0,0.208794]
[1734886396568,0.20878,95795.0,95784.0,0.208803]
[1734886396990,0.208781,95794.0,95783.0,0.023]
[1734886397303,0.208781,95794.0,95782.0,0.208807]
[1734886399070,0.0768,95794.0,95781.0,0.48811401]
[1734886399281,0.0013049,95793.0,95781.0,0.48811401]
[1734886399694,0.0013049,95793.0,95768.0,0.0805]
[1734886399695,0.1026133,95793.0,95773.0,0.48811401]
[1734886399908,0.10261345,95792.0,95773.0,0.48811401]
[1734886400114,0.208805,95783.0,95773.0,0.48811401]
[1734886400287,0.0768,95781.0,95765.0,0.09299621]
[1734886400527,0.208834,95770.0,95765.0,0.09299621]
[1734886401348,0.208834,95770.0,95763.0,8.55e-05]
[1734886401476,0.417668,95770.0,95763.0,8.55e-05]
[1734886401682,0.208826,95774.0,95763.0,8.55e-05]
[1734886401683,0.0768,95768.0,95765.0,0.005]
[1734886401947,0.10261377,95767.0,95765.0,0.005]
[1734886402299,0.208847,95764.0,95761.0,0.09208171]
[1734886402487,0.208851,95762.0,95747.0,0.09208171]
[1734886402671,0.00130542,95761.0,95754.0,0.00015852]
[1734886402922,0.208855,95760.0,95754.0,0.00015852]
[1734886403124,0.21918287,95786.0,95756.0,0.023]
[1734886403324,0.21011016,95783.0,95766.0,0.20884]
[1734886403636,0.21011016,95783.0,95769.0,0.208835]
[1734886403843,0.09352191,95776.0,95769.0,0.208835]
[1734886404069,0.09352191,95776.0,95765.0,0.208843]
[1734886404631,0.09352191,95776.0,95766.0,0.001]
[1734886404834,0.09352191,95776.0,95765.0,0.208843]
[1734886405036,0.01143532,95775.0,95765.0,0.208843]
[1734886405666,0.01143532,95774.0,95765.0,0.208843]
[1734886406267,0.01143532,95773.0,95765.0,0.208843]
[1734886406793,0.01143532,95772.0,95765.0,0.208843]
[1734886406992,0.01143532,95772.0,95770.0,0.208833]
[1734886407194,0.01143532,95772.0,95770.0,0.202833]
[1734886407447,0.01143532,95772.0,95765.0,0.208843]
[1734886407571,0.01143532,95771.0,95765.0,0.208843]
[1734886407988,0.01143532,95771.0,95765.0,0.417687]
[1734886408242,0.208815,95779.0,95770.0,0.001]
[1734886408448,0.00130516,95778.0,95765.0,0.417687]
[1734886408649,0.208815,95779.0,95765.0,0.417687]
[1734886408812,0.01143264,95778.0,95765.0,0.419687]
[1734886409199,0.01143264,95777.0,95765.0,0.417687]
[1734886409518,0.01143264,95777.0,95765.0,0.208843]
[1734886409776,0.01143264,95777.0,95757.0,0.48811401]
[1734886409777,0.01143264,95776.0,95769.0,0.208834]
[1734886410612,0.01143264,95775.0,95769.0,0.208834]
[1734886411178,0.01143264,95774.0,95769.0,0.208834]
[1734886411771,0.01143264,95773.0,95769.0,0.208834]
[1734886412210,0.01143264,95773.0,95769.0,0.202834]
[1734886412531,0.01143264,95772.0,95769.0,0.203834]
[1734886413520,0.01143264,95771.0,95769.0,0.203834]
[1734886413734,0.01143264,95771.0,95769.0,0.202834]
[1734886413987,0.01143264,95770.0,95769.0,0.203834]
[1734886414355,0.01143264,95770.0,95765.0,0.208843]
[1734886414595,0.01143264,95770.0,95769.0,0.002]
[1734886415015,0.01143264,95770.0,95761.0,0.48811401]
[1734886415166,0.01143264,95770.0,95769.0,0.002]
[1734886415968,0.01143264,95770.0,95769.0,0.0020856]
[1734886416937,0.01143264,95770.0,95769.0,8.56e-05]
[1734886417136,0.01143264,95770.0,95766.0,0.4117676]
[1734886417337,0.01143264,95770.0,95768.0,0.208838]
[1734886417654,0.208794,95788.0,95776.0,0.208818]
[1734886417862,0.208784,95793.0,95776.0,0.208818]
[1734886418085,0.3101004,95790.0,95776.0,0.208818]
[1734886418278,0.01143195,95787.0,95776.0,0.208818]
[1734886418878,0.01143195,95786.0,95776.0,0.208818]
[1734886419385,0.01143195,95785.0,95776.0,0.208818]
[1734886419591,0.01143195,95785.0,95769.0,0.53651401]
[1734886419766,0.01143195,95784.0,95778.0,0.208816]
[1734886420540,0.01143195,95783.0,95778.0,0.208816]
[1734886421100,0.01143195,95782.0,95778.0,0.417632]
[1734886421956,0.01143195,95781.0,95778.0,0.417632]
[1734886422162,0.01143195,95781.0,95778.0,0.411632]
[1734886422367,0.01143195,95780.0,95778.0,0.411632]
[1734886422965,0.01143195,95779.0,95778.0,0.202816]
[1734886423169,0.01143195,95779.0,95775.0,0.208821]
[1734886423367,0.01143195,95779.0,95772.0,0.208828]
[1734886423586,0.00130504,95778.0,95770.0,0.48811401]
[1734886423955,0.01143195,95777.0,95770.0,0.48811401]
[1734886424154,0.00130522,95776.0,95770.0,0.48811401]
[1734886424386,0.208831,95771.0,95770.0,0.48811401]
[1734886424830,0.208824,95774.0,95770.0,0.48811401]
[1734886425161,0.208829,95772.0,95770.0,0.48811401]
[1734886425657,0.208829,95772.0,95757.0,0.48811401]
[1734886425816,0.01143195,95771.0,95758.0,0.499917]
[1734886426011,0.01143195,95771.0,95762.0,0.20885]
[1734886426287,0.208833,95770.0,95759.0,0.208857]
[1734886426663,0.22027429,95770.0,95759.0,0.208857]
[1734886426862,0.01144129,95770.0,95759.0,0.208857]
[1734886427067,0.01144129,95769.0,95759.0,0.208857]
[1734886427242,0.01144129,95769.0,95759.0,0.411714]
[1734886427445,0.01144129,95768.0,95759.0,0.411714]
[1734886427867,0.01144129,95767.0,95759.0,0.411714]
[1734886428380,0.01144129,95766.0,95759.0,0.411714]
[1734886429167,0.01144129,95765.0,95759.0,0.411714]
[1734886429528,0.01144129,95764.0,95759.0,0.411714]
[1734886430161,0.01144129,95763.0,95759.0,0.411714]
[1734886430575,0.01144129,95762.0,95759.0,0.411714]
[1734886430969,0.01144129,95762.0,95759.0,0.413714]
[1734886431170,0.01144129,95761.0,95759.0,0.411714]
[1734886431580,0.01144129,95760.0,95759.0,0.413714]
[1734886431787,0.26274969,95760.0,95759.0,0.002]
[1734886431985,0.15,95759.0,95758.0,8.56e-05]
[1734886432189,0.45261397,95759.0,95758.0,8.56e-05]
[1734886432403,0.358875,95751.0,95750.0,0.08763517]
[1734886432588,0.4601834,95751.0,95750.0,0.08763517]
[1734886432747,0.47162469,95751.0,95750.0,0.08763517]
[1734886432952,0.208894,95743.0,95738.0,0.08763517]
[1734886433198,0.01144129,95751.0,95739.0,0.208901]
[1734886433400,0.21018254,95750.0,95738.0,0.08763517]
[1734886433602,0.41905954,95750.0,95738.0,0.29653817]
[1734886433802,0.01144129,95749.0,95738.0,0.208903]
[1734886434190,0.01144129,95749.0,95738.0,0.212903]
[1734886434408,0.01144129,95748.0,95738.0,0.212903]
[1734886434615,0.01144129,95748.0,95738.0,0.208903]
[1734886435027,0.01144129,95748.0,95738.0,0.209903]
[1734886435226,0.01144129,95747.0,95738.0,0.209903]
[1734886435505,0.01144129,95747.0,95745.0,0.023]
[1734886435708,0.01144129,95747.0,95746.0,0.1243084]
[1734886435908,0.001,95748.0,95746.0,0.1243084]
[1734886436108,0.001,95748.0,95747.0,0.023]
[1734886437280,0.01144129,95757.0,95747.0,0.023]
[1734886437407,0.01144129,95756.0,95747.0,0.023]
[1734886437608,0.01144129,95756.0,95755.0,0.208866]
[1734886438865,0.01144129,95756.0,95755.0,0.211866]
[1734886439098,0.01144129,95756.0,95755.0,0.003]
[1734886440253,0.01144129,95756.0,95746.0,0.208886]
[1734886440703,0.01144129,95756.0,95755.0,0.001]
[1734886440895,0.01144129,95756.0,95746.0,0.208886]
[1734886441096,0.01144129,95755.0,95747.0,0.208883]
[1734886441500,0.01144129,95754.0,95751.0,0.208873]
[1734886442265,0.01144129,95753.0,95751.0,0.208873]
[1734886442951,0.01144129,95752.0,95751.0,0.208873]
[1734886443176,0.01144129,95752.0,95751.0,0.202873]
[1734886444125,0.01144129,95752.0,95751.0,0.001]
[1734886444529,0.01144129,95752.0,95747.0,0.208883]
[1734886444918,0.01144129,95751.0,95747.0,0.208883]
[1734886445382,0.01144129,95750.0,95747.0,0.208883]
[1734886445722,0.01144129,95750.0,95745.0,0.208888]
[1734886445920,0.00139588,95759.0,95745.0,0.208888]
[1734886445921,0.01144129,95749.0,95745.0,0.417776]
[1734886446392,0.01144129,95749.0,95745.0,0.208888]
[1734886446761,0.01144129,95748.0,95745.0,0.417776]
[1734886447001,0.01144129,95748.0,95747.0,0.002]
[1734886447204,0.01144129,95748.0,95745.0,0.413776]
[1734886447726,0.01144129,95748.0,95745.0,0.416776]
[1734886447867,0.01144129,95747.0,95745.0,0.413776]
[1734886448526,0.01144129,95746.0,95745.0,0.413776]
[1734886449084,0.01144129,95746.0,95745.0,0.417776]
[1734886449843,0.01144129,95746.0,95745.0,0.208888]
[1734886450403,0.01144129,95746.0,95740.0,0.48811401]
[1734886450595,0.20889,95744.0,95740.0,0.48811401]
[1734886450801,0.208896,95741.0,95727.0,0.27884574]
[1734886450996,0.00130564,95743.0,95727.0,0.27884574]
[1734886450997,0.208907,95737.0,95727.0,0.27884574]
[1734886451218,0.208899,95740.0,95727.0,0.27884574]
[1734886451424,0.208903,95738.0,95730.0,0.0933635]
[1734886451711,0.01144129,95736.0,95730.0,0.3022825]
[1734886451881,0.01144129,95736.0,95730.0,0.0933635]
[1734886452067,0.002,95741.0,95730.0,0.0933635]
[1734886452404,0.002,95741.0,95730.0,0.0873635]
[1734886452549,0.00130567,95740.0,95730.0,0.0873635]
[1734886452747,0.00130567,95740.0,95718.0,8.55e-05]
[1734886452748,0.2787084,95739.0,95718.0,8.55e-05]
[1734886452992,0.208924,95729.0,95718.0,8.55e-05]
[1734886453200,0.00130591,95728.0,95718.0,8.55e-05]
[1734886453421,0.208916,95732.0,95718.0,8.55e-05]
[1734886453596,0.208925,95728.0,95719.0,0.208944]
[1734886453773,0.1013084,95731.0,95724.0,0.208933]
[1734886453977,0.0407,95760.0,95726.0,0.335929]
[1734886453978,0.01142546,95727.0,95726.0,0.335929]
[1734886454427,0.01142546,95727.0,95726.0,0.127]
[1734886457321,0.01142546,95727.0,95719.0,0.082]
[1734886457724,0.01142546,95727.0,95718.0,8.55e-05]
[1734886457904,0.01142546,95726.0,95718.0,8.55e-05]
[1734886458333,0.208931,95725.0,95718.0,8.55e-05]
[1734886458884,0.22035646,95725.0,95718.0,8.55e-05]
[1734886459009,0.20894,95721.0,95718.0,8.55e-05]
[1734886459210,0.00130585,95720.0,95718.0,8.55e-05]
[1734886459418,0.208944,95719.0,95718.0,8.55e-05]
[1734886459645,0.22035946,95724.0,95718.0,8.55e-05]
[1734886459646,0.01142546,95724.0,95718.0,8.55e-05]
[1734886460007,0.01142546,95719.0,95718.0,8.55e-05]
[1734886462570,0.01342546,95719.0,95718.0,8.55e-05]
[1734886462774,0.01142546,95719.0,95718.0,8.55e-05]
[1734886464153,0.22336946,95719.0,95718.0,8.55e-05]
[1734886464518,0.22036946,95719.0,95718.0,8.55e-05]
[1734886464744,0.22136946,95719.0,95718.0,8.55e-05]
[1734886465147,0.22036946,95719.0,95718.0,8.55e-05]
[1734886465942,0.22336946,95719.0,95718.0,8.55e-05]
[1734886467245,0.22036946,95719.0,95709.0,0.2030515]
[1734886467447,0.22036946,95719.0,95709.0,0.20317042]
[1734886467646,0.22336946,95719.0,95709.0,0.00011892]
[1734886468053,0.01142546,95718.0,95709.0,0.00011892]
[1734886468451,0.22037246,95718.0,95710.0,0.208964]
[1734886468752,0.01142546,95717.0,95710.0,0.52239]
[1734886469292,0.01142546,95716.0,95710.0,0.52239]
[1734886470313,0.01142546,95715.0,95710.0,0.52239]
[1734886470488,0.01142546,95715.0,95711.0,0.208962]
[1734886470691,0.01142546,95715.0,95712.0,0.00052266]
[1734886470901,0.01142546,95714.0,95713.0,0.208958]
[1734886471067,0.01142546,95714.0,95713.0,0.731358]
[1734886471274,0.002,95717.0,95713.0,0.5224]
[1734886471475,0.0001714,95727.0,95716.0,0.1294]
[1734886471685,0.0001714,95727.0,95718.0,0.023]
[1734886471888,0.01142546,95726.0,95719.0,0.208944]
[1734886472109,0.01142546,95726.0,95725.0,0.208931]
[1734886472287,0.01142546,95726.0,95725.0,0.202931]
[1734886472483,0.0001714,95727.0,95725.0,0.202931]
[1734886472887,0.01141321,95726.0,95725.0,0.202931]
[1734886474153,0.01141321,95726.0,95725.0,0.725261]
[1734886474410,0.01141321,95726.0,95725.0,0.727261]
[1734886477194,0.01141321,95726.0,95725.0,0.721261]
[1734886478758,0.01141321,95726.0,95725.0,0.801361]
[1734886479747,0.01141321,95726.0,95725.0,1.28947501]
[1734886481484,0.01141321,95726.0,95725.0,1.36177501]
[1734886482194,0.01141321,95726.0,95725.0,1.35577501]
[1734886482642,0.01141321,95726.0,95725.0,1.35377501]
[1734886482869,0.0001714,95727.0,95725.0,1.35977501]
[1734886483696,0.01143828,95726.0,95725.0,1.35977501]
[1734886483949,0.01160968,95726.0,95725.0,1.35977501]
[1734886484294,0.0001714,95726.0,95725.0,1.35377501]
[1734886485183,0.0001714,95726.0,95725.0,1.23237501]
[1734886485427,0.0001714,95726.0,95725.0,1.01844401]
[1734886485637,0.0001714,95726.0,95725.0,0.53033]
[1734886486127,0.01160517,95726.0,95725.0,0.53033]
[1734886487248,0.01160517,95726.0,95725.0,0.52433]
[1734886487451,0.01160517,95726.0,95725.0,0.51633]
[1734886487653,0.01160517,95726.0,95725.0,0.51733]
[1734886488212,0.01160517,95726.0,95725.0,0.51633]
[1734886488989,0.01160517,95726.0,95725.0,0.51733]
[1734886491949,0.01160517,95726.0,95725.0,0.51633]
[1734886492226,0.01160517,95726.0,95725.0,0.51033]
[1734886497366,0.01160517,95726.0,95725.0,0.5044157]
[1734886502261,0.0001714,95726.0,95725.0,0.5044157]
[1734886502463,0.0116178,95726.0,95725.0,0.5044157]
[1734886503165,0.0116178,95726.0,95725.0,0.4984157]
[1734886505239,0.0146178,95726.0,95725.0,0.4984157]
[1734886507226,0.0146178,95726.0,95725.0,0.4924157]
[1734886509429,0.0116178,95726.0,95725.0,0.4924157]
[1734886509842,0.0126178,95726.0,95725.0,0.4924157]
[1734886510040,0.0116178,95726.0,95725.0,0.4924157]
[1734886510449,0.0136178,95726.0,95725.0,0.4924157]
[1734886512315,0.0136178,95726.0,95725.0,0.4864157]
[1734886512719,0.0116178,95726.0,95725.0,0.7756467]
[1734886512928,0.0126178,95726.0,95725.0,0.8255467]
[1734886513136,0.0126178,95726.0,95725.0,0.9498551]
[1734886513340,0.0126178,95726.0,95725.0,0.96009284]
[1734886513724,0.0116178,95726.0,95725.0,0.96009284]
[1734886514124,0.0126178,95726.0,95725.0,0.96009284]
[1734886514334,0.0116178,95726.0,95725.0,0.96009284]
[1734886515605,0.0116178,95726.0,95725.0,1.28928769]
[1734886515820,0.0116178,95726.0,95725.0,1.7774017]
[1734886516421,0.0116178,95726.0,95725.0,1.7824017]
[1734886516585,0.0116178,95726.0,95725.0,1.7774017]
[1734886516991,0.0116178,95726.0,95725.0,1.7834017]
[1734886517294,0.0116178,95726.0,95725.0,1.7714017]
[1734886517687,0.0116178,95726.0,95725.0,1.7774017]
[1734886520623,0.0116178,95726.0,95725.0,1.917224]
[1734886521125,0.0001714,95726.0,95725.0,1.917224]
[1734886521912,0.0001714,95726.0,95725.0,1.7774017]
[1734886522111,0.0001714,95726.0,95725.0,1.9274017]
[1734886522493,0.0001714,95726.0,95725.0,1.9214017]
[1734886522697,0.0001714,95726.0,95725.0,1.9304017]
[1734886523034,0.0001714,95726.0,95725.0,1.9214017]
[1734886523396,0.0001714,95726.0,95725.0,2.38198634]
[1734886524912,0.0001714,95726.0,95725.0,1.9214017]
[1734886525968,0.0001714,95726.0,95725.0,1.9224017]
[1734886526565,0.0001714,95726.0,95725.0,1.9214017]
[1734886526762,0.0001714,95726.0,95725.0,1.9224017]
[1734886530074,4e-07,95726.0,95725.0,2.0224017]
[1734886531660,4e-07,95726.0,95725.0,1.9224017]
[1734886531861,4e-07,95726.0,95725.0,2.0224017]
[1734886532283,4e-07,95726.0,95725.0,2.0214017]
[1734886533105,4e-07,95726.0,95725.0,2.25405813]
[1734886534113,4e-07,95726.0,95725.0,2.0214017]
[1734886536782,4e-07,95726.0,95725.0,2.25378378]
[1734886536930,8e-07,95727.0,95726.0,0.273]
[1734886537136,8e-07,95727.0,95726.0,1.0656284]
[1734886539126,8e-07,95727.0,95726.0,1.39482325]
[1734886539828,0.01142075,95753.0,95730.0,0.66111321]
[1734886539999,0.0001712,95756.0,95753.0,0.48811321]
[1734886540180,0.0001712,95756.0,95753.0,1.05229321]
[1734886540379,0.01142872,95755.0,95753.0,1.26116221]
[1734886541324,0.01142872,95754.0,95753.0,1.26116221]
[1734886542110,0.01142872,95754.0,95753.0,1.26316221]
[1734886542336,0.01142872,95754.0,95753.0,1.25716221]
[1734886542747,0.01142872,95754.0,95753.0,1.25516221]
[1734886543097,0.01142872,95754.0,95753.0,1.25816221]
[1734886543997,0.01142872,95754.0,95753.0,1.25516221]
[1734886545684,0.01160012,95754.0,95753.0,1.26016221]
[1734886545934,0.01160012,95754.0,95753.0,1.28080133]
[1734886547320,0.01160012,95754.0,95753.0,1.27480133]
[1734886550111,0.0001714,95754.0,95753.0,1.27480133]
[1734886550236,0.01161857,95754.0,95753.0,1.27480133]
[1734886551311,0.01161857,95754.0,95753.0,1.25416221]
[1734886552346,0.01161857,95754.0,95753.0,1.24816221]
[1734886555273,0.0001714,95754.0,95753.0,1.24816221]
[1734886555766,0.01162166,95754.0,95753.0,1.24816221]
[1734886555968,0.0001714,95754.0,95753.0,1.24816221]
[1734886556105,0.0001714,95754.0,95753.0,1.24316221]
[1734886556934,0.0001714,95754.0,95753.0,1.24616221]
[1734886557297,0.0001714,95754.0,95753.0,1.24016221]
[1734886557710,0.01162137,95754.0,95753.0,0.776049]
[1734886558341,0.01162137,95754.0,95753.0,0.773049]
[1734886558545,0.01162137,95754.0,95753.0,0.779049]
[1734886559367,0.01162137,95754.0,95753.0,0.7791346]
[1734886563171,0.01162137,95754.0,95753.0,0.8500346]
[1734886563755,0.01162137,95754.0,95753.0,1.31414781]
[1734886567133,0.01162137,95754.0,95753.0,1.82911813]
[1734886567336,0.01162137,95754.0,95753.0,1.82311813]
[1734886568618,0.01162137,95754.0,95753.0,1.76142339]
[1734886568885,0.01162137,95754.0,95753.0,1.80932339]
[1734886569975,0.01162137,95754.0,95753.0,2.04182732]
[1734886570706,0.0001714,95754.0,95753.0,2.04182732]
[1734886571113,0.0001714,95754.0,95753.0,1.80932339]
[1734886572627,0.0001714,95754.0,95753.0,1.80332339]
[1734886572874,0.0001714,95754.0,95753.0,1.81232339]
[1734886573322,0.0001714,95754.0,95753.0,1.80332339]
[1734886573538,0.0001714,95754.0,95753.0,1.81232339]
[1734886577945,0.0001714,95754.0,95753.0,1.96232339]
[1734886578752,0.0001714,95754.0,95753.0,2.70387078]
[1734886580017,0.0001714,95754.0,95753.0,2.42449527]
[1734886582592,0.0001714,95754.0,95753.0,2.7042103]
[1734886585506,0.0001714,95754.0,95753.0,2.42449527]
[1734886592561,0.0001714,95754.0,95753.0,2.70432877]
[1734886593769,0.0001714,95754.0,95753.0,2.69532877]
[1734886595771,0.0001714,95754.0,95753.0,2.69632877]
[1734886596177,0.01145076,95771.0,95770.0,0.231833]
[1734886596376,0.0001712,95772.0,95771.0,0.48711321]
[1734886596606,0.0001712,95772.0,95771.0,0.58842161]
[1734886596750,0.0001712,95772.0,95771.0,0.63712161]
[1734886597418,0.0001712,95772.0,95771.0,0.63112161]
[1734886597849,0.0001712,95772.0,95771.0,1.76924524]
[1734886598449,0.0001712,95772.0,95771.0,1.77983808]
[1734886598660,0.0001712,95772.0,95771.0,1.78383808]
[1734886599078,0.0794,95801.0,95790.0,0.45811321]
[1734886599282,0.0794,95801.0,95800.0,0.208768]
[1734886599723,0.09084778,95801.0,95800.0,0.208768]
[1734886600977,0.01144778,95801.0,95800.0,0.208768]
[1734886601498,0.01144778,95801.0,95795.0,0.208778]
[1734886601708,0.1261,95800.0,95795.0,0.208778]
[1734886602109,0.01144778,95799.0,95795.0,0.208778]
[1734886602311,0.01144778,95799.0,95795.0,0.202778]
[1734886602738,0.01144778,95798.0,95795.0,0.202778]
[1734886603220,0.01144778,95798.0,95790.0,0.76005345]
[1734886603221,0.11406104,95797.0,95790.0,0.09315124]
[1734886603429,0.11406104,95797.0,95775.0,0.66693421]
[1734886603430,0.0763,95790.0,95779.0,0.09315124]
[1734886603653,0.1222,95788.0,95779.0,0.66919124]
[1734886603885,0.00130504,95787.0,95779.0,0.66919124]
[1734886604045,0.01275282,95787.0,95779.0,0.66919124]
[1734886604562,0.01144778,95786.0,95779.0,0.66919124]
[1734886604733,0.00130505,95785.0,95780.0,0.208811]
[1734886604938,0.00146754,95785.0,95780.0,0.208811]
[1734886605133,0.01144778,95784.0,95779.0,0.57604]
[1734886605579,0.01144778,95783.0,95779.0,0.57604]
[1734886605795,0.01144778,95783.0,95779.0,0.57804]
[1734886606004,0.01144778,95783.0,95779.0,0.784853]
[1734886606215,0.01144778,95782.0,95779.0,0.784853]
[1734886606415,0.01144778,95782.0,95779.0,0.786853]
[1734886606602,0.01144778,95781.0,95779.0,0.784853]
[1734886607034,0.01144778,95781.0,95779.0,0.787853]
[1734886607238,0.01144778,95780.0,95779.0,0.781853]
[1734886608213,0.01144778,95780.0,95779.0,0.778853]
[1734886608416,0.01144778,95780.0,95779.0,0.781853]
[1734886608833,0.01144778,95780.0,95779.0,0.778853]
[1734886608986,0.01144778,95780.0,95779.0,0.782853]
[1734886610519,0.01144778,95780.0,95779.0,0.57404]
[1734886611061,0.01144778,95780.0,95779.0,0.782854]
[1734886611717,0.101394,95797.0,95779.0,0.57004]
[1734886611921,0.1,95782.0,95779.0,0.57004]
[1734886612121,0.35,95780.0,95779.0,0.53774]
[1734886612323,0.4513084,95780.0,95779.0,0.53174]
[1734886612521,0.46123297,95780.0,95779.0,0.53174]
[1734886612796,0.46123297,95780.0,95779.0,0.002]
[1734886612915,0.558842,95766.0,95760.0,0.18630248]
[1734886613115,0.6601504,95766.0,95765.0,0.09331373]
[1734886613879,0.6601504,95766.0,95765.0,0.00016249]
[1734886614249,0.66003696,95766.0,95765.0,0.00016249]
[1734886614694,0.66083696,95766.0,95765.0,0.00016249]
[1734886615260,0.66083696,95766.0,95765.0,0.00116249]
[1734886615597,0.66083696,95766.0,95765.0,0.00016249]
[1734886616003,0.66083696,95766.0,95765.0,0.00116249]
[1734886616182,0.66083696,95766.0,95765.0,0.00016249]
[1734886617288,0.208888,95746.0,95732.0,0.20316409]
[1734886617489,0.00078406,95745.0,95732.0,0.20331112]
[1734886618140,0.00078406,95745.0,95736.0,0.208906]
[1734886618549,0.208885,95747.0,95732.0,0.20906103]
[1734886618746,0.00078406,95746.0,95732.0,0.20906103]
[1734886619328,0.208888,95745.0,95732.0,0.41797603]
[1734886619589,0.00078406,95744.0,95732.0,0.41797603]
[1734886620542,0.208888,95745.0,95732.0,0.20906103]
[1734886620742,0.00078406,95744.0,95732.0,0.20906103]
[1734886621950,0.208892,95743.0,95732.0,0.20906103]
[1734886622154,0.00078406,95742.0,95732.0,0.00014703]
[1734886622361,0.208896,95741.0,95732.0,0.00014703]
[1734886622565,0.00078406,95740.0,95732.0,0.00014703]
[1734886623175,0.00078406,95740.0,95733.0,0.208914]
[1734886623581,0.00078406,95745.0,95731.0,0.208917]
[1734886623966,0.00078406,95749.0,95743.0,0.417782]
[1734886624919,0.00016234,95750.0,95743.0,0.417782]
[1734886624920,0.00016234,95750.0,95747.0,0.208883]
[1734886625251,0.00016234,95750.0,95747.0,0.417766]
[1734886626135,0.00016234,95750.0,95747.0,0.419766]
[1734886626483,0.00016234,95750.0,95747.0,0.210883]
[1734886627195,0.00016234,95750.0,95747.0,0.413766]
[1734886627355,0.00016234,95750.0,95747.0,0.411766]
[1734886627760,0.00016234,95750.0,95747.0,0.202883]
[1734886628276,0.00016234,95750.0,95747.0,0.205883]
[1734886628643,0.00016234,95750.0,95747.0,0.202883]
[1734886629067,0.00016234,95750.0,95747.0,0.204883]
[1734886631182,4.886e-05,95750.0,95747.0,0.204883]
[1734886632254,4.886e-05,95750.0,95747.0,0.198883]
[1734886635256,4.886e-05,95750.0,95747.0,0.002]
[1734886635653,0.01136953,95749.0,95747.0,0.002]
[1734886636339,0.01136953,95748.0,95747.0,0.002]
[1734886637336,0.01136953,95748.0,95741.0,0.71302265]
[1734886637549,0.208883,95747.0,95741.0,0.50412665]
[1734886637758,0.20966706,95747.0,95741.0,0.50412665]
[1734886638111,0.20966706,95747.0,95741.0,0.45811321]
[1734886638112,0.01136953,95746.0,95741.0,0.45811321]
[1734886638314,0.208891,95744.0,95741.0,0.45811321]
[1734886638514,0.208894,95742.0,95741.0,0.45811321]
[1734886639014,0.208894,95742.0,95741.0,0.45911321]
[1734886639217,0.208907,95737.0,95733.0,0.0824]
[1734886639979,0.01136953,95736.0,95733.0,0.0824]
[1734886640178,0.22027753,95736.0,95733.0,0.0824]
[1734886640607,0.01136953,95736.0,95733.0,0.0824]
[1734886640747,0.01136953,95735.0,95733.0,0.0824]
[1734886641148,0.01136953,95734.0,95733.0,0.0824]
[1734886641972,0.01136953,95734.0,95728.0,0.0824]
[1734886642195,0.01136953,95734.0,95728.0,0.0765712]
[1734886642902,0.01136953,95733.0,95728.0,0.0765712]
[1734886643600,0.01136953,95732.0,95728.0,0.0765712]
[1734886644025,0.22028753,95731.0,95728.0,0.0765712]
[1734886644233,0.00078406,95730.0,95728.0,0.0765712]
[1734886644411,0.208923,95729.0,95725.0,8.57e-05]
[1734886644624,0.3102314,95729.0,95728.0,0.001]
[1734886644882,0.208925,95728.0,95725.0,8.57e-05]
[1734886645084,0.208929,95726.0,95725.0,8.57e-05]
[1734886645242,0.3102374,95726.0,95725.0,8.57e-05]
[1734886645875,0.32160693,95726.0,95725.0,8.57e-05]
[1734886647427,0.208955,95714.0,95708.0,0.0763714]
[1734886647556,0.00078406,95713.0,95708.0,0.0763714]
[1734886647761,0.20896,95712.0,95708.0,0.0763714]
[1734886647985,0.00078406,95711.0,95708.0,0.0763714]
[1734886648501,0.01215359,95711.0,95708.0,0.0763714]
[1734886648700,0.01225531,95711.0,95708.0,0.0763714]
[1734886648941,0.01136953,95710.0,95708.0,0.0763714]
[1734886649661,0.01136953,95709.0,95708.0,0.0763714]